lending/lending_fUSD_20250122
["ID","MTS","AMOUNT","RATE_DAILY","PERIOD"]
[349984193,1737549044501,-500.0,0.00020528,2]
[349984194,1737549044511,-549.78,0.00020528,2]
[349984195,1737549044520,-500.0,0.00020528,2]
[349984196,1737549044530,-500.0,0.00020528,2]
[349984197,1737549044540,-342.49,0.00020528,2]
[349984198,1737549044551,-1335.98476408,0.00020553,2]
[349984199,1737549044562,-333.39474199,0.00020553,2]
[349984200,1737549044572,-307.23134397,0.00020567,2]
[349984201,1737549044582,-159.71002209,0.00020602,2]
[349984202,1737549044591,-213.03368819,0.00020627,2]
[349984203,1737549044601,-500.0,0.000207,2]
[349984204,1737549044611,-500.0,0.000207,2]
[349984205,1737549044620,-500.0,0.000207,2]
[349984206,1737549044630,-500.0,0.000207,2]
[349984207,1737549044640,-500.0,0.000207,2]
[349984208,1737549044649,-500.0,0.000207,2]
[349984209,1737549044660,-500.0,0.000207,2]
[349984210,1737549044676,-500.0,0.000207,2]
[349984211,1737549044686,-500.0,0.000207,2]
[349984212,1737549044695,-500.0,0.000207,2]
[349984213,1737549044706,-500.0,0.000207,2]
[349984214,1737549044716,-500.0,0.000207,2]
[349984215,1737549044726,-500.0,0.000207,2]
[349984216,1737549044735,-500.0,0.000207,2]
[349984217,1737549044745,-641.28008165,0.000207,2]
[349984218,1737549044754,-500.0,0.000207,2]
[349984219,1737549044764,-500.0,0.000207,2]
[349984220,1737549044774,-219.03934599,0.000207,2]
[349984221,1737549044783,-500.0,0.000207,2]
[349984222,1737549044792,-500.0,0.000207,2]
[349984223,1737549044802,-595.67,0.000207,2]
[349984224,1737549044811,-910.2,0.000207,2]
[349984225,1737549044820,-1176.07,0.000207,2]
[349984226,1737549044829,-1124.32,0.000207,2]
[349984227,1737549044838,-2693.46,0.000207,2]
[349984228,1737549044847,-500.0,0.000207,2]
[349984229,1737549044857,-5144.43,0.000207,2]
[349984230,1737549044869,-509.02470906,0.000207,2]
[349984231,1737549044879,-727.29,0.000207,2]
[349984232,1737549044888,-506.87233229,0.000207,2]
[349984233,1737549044898,-612.69,0.000207,2]
[349984234,1737549044907,-500.0,0.000207,2]
[349984235,1737549044916,-1727.17,0.000207,2]
[349984236,1737549044926,-626.21,0.000207,2]
[349984237,1737549044935,-500.0,0.000207,2]
[349984238,1737549044945,-500.0,0.000207,2]
[349984239,1737549044954,-716.33,0.000207,2]
[349984240,1737549044964,-500.0,0.000207,2]
[349984241,1737549044974,-500.0,0.000207,2]
[349984242,1737549044983,-1059.07,0.000207,2]
[349984243,1737549044993,-500.0,0.000207,2]
[349984244,1737549045002,-500.0,0.000207,2]
[349984245,1737549045012,-1114.06,0.000207,2]
[349984246,1737549045021,-500.0,0.000207,2]
[349984247,1737549045032,-300.0,0.000207,2]
[349984248,1737549045041,-500.0,0.000207,2]
[349984249,1737549045051,-500.0,0.000207,2]
[349984250,1737549045061,-500.0,0.000207,2]
[349984251,1737549045074,-500.0,0.000207,2]
[349984252,1737549045084,-500.0,0.000207,2]
[349984253,1737549045094,-1000.0,0.000207,2]
[349984254,1737549045103,-500.0,0.000207,2]
[349984255,1737549045115,-634.21,0.000207,2]
[349984256,1737549045125,-500.0,0.000207,2]
[349984257,1737549045135,-500.0,0.000207,2]
[349984258,1737549045145,-500.0,0.000207,2]
[349984259,1737549045154,-500.0,0.000207,2]
[349984260,1737549045163,-500.0,0.000207,2]
[349984261,1737549045173,-1624.3,0.000207,2]
[349984262,1737549045182,-500.0,0.000207,2]
[349984263,1737549045192,-500.0,0.000207,2]
[349984264,1737549045201,-500.0,0.000207,2]
[349984265,1737549045210,-1154.89,0.000207,2]
[349984266,1737549045220,-555.0,0.000207,2]
[349984267,1737549045229,-500.0,0.000207,2]
[349984268,1737549045239,-500.0,0.000207,2]
[349984269,1737549045248,-500.0,0.000207,2]
[349984270,1737549045258,-500.0,0.000207,2]
[349984271,1737549045267,-511.06183521,0.000207,2]
[349984272,1737549045278,-500.0,0.000207,2]
[349984273,1737549045287,-500.0,0.000207,2]
[349984274,1737549045297,-500.0,0.000207,2]
[349984275,1737549045306,-500.0,0.000207,2]
[349984276,1737549045315,-500.0,0.000207,2]
[349984277,1737549045325,-500.0,0.000207,2]
[349984278,1737549045334,-500.0,0.000207,2]
[349984279,1737549045344,-500.0,0.000207,2]
[349984280,1737549045353,-512.06795004,0.00020701,2]
[349984281,1737549045363,-500.0,0.00020701,2]
[349984282,1737549045372,-500.0,0.00020701,2]
[349984283,1737549045382,-500.0,0.00020701,2]
[349984284,1737549045391,-33187.8025,0.00020702,2]
[349984285,1737549045401,-500.0,0.0002074,2]
[349984286,1737549045410,-1335.98476408,0.00020777,2]
[349984287,1737549045420,-333.39474199,0.00020778,2]
[349984288,1737549045430,-317.35231047,0.00020789,2]
[349984289,1737549045440,-241.57757211,0.0002079,2]
[349984290,1737549045449,-241.57757211,0.00020791,2]
[349984291,1737549045459,-500.0,0.00020801,2]
[349984292,1737549045468,-516.62,0.00020801,2]
[349984293,1737549045478,-500.0,0.00020801,2]
[349984294,1737549045487,-500.0,0.00020801,2]
[349984295,1737549045497,-500.0,0.00020801,2]
[349984296,1737549045506,-530.02,0.00020801,2]
[349984297,1737549045515,-622.68,0.00020801,2]
[349984298,1737549045524,-500.0,0.00020801,2]
[349984299,1737549045534,-465.621511,0.00020801,2]
[349984300,1737549045544,-500.0,0.00020801,2]
[349984301,1737549045553,-500.0,0.00020801,2]
[349984302,1737549045563,-661.91,0.00020801,2]
[349984303,1737549045573,-759.510306,0.00020801,2]
[349984304,1737549045582,-777.07,0.00020801,2]
[349984305,1737549045591,-500.0,0.00020801,2]
[349984306,1737549045601,-500.0,0.00020801,2]
[349984307,1737549045611,-500.0,0.00020801,2]
[349984308,1737549045620,-500.0,0.00020801,2]
[349984309,1737549045630,-500.0,0.00020801,2]
[349984310,1737549045639,-682.69,0.00020801,2]
[349984311,1737549045649,-715.54,0.00020801,2]
[349984312,1737549045658,-569.24,0.00020801,2]
[349984313,1737549045668,-500.0,0.00020801,2]
[349984314,1737549045677,-500.0,0.00020801,2]
[349984315,1737549045687,-500.0,0.00020801,2]
[349984316,1737549045696,-500.0,0.00020801,2]
[349984317,1737549045706,-500.0,0.00020801,2]
[349984318,1737549045715,-500.0,0.00020801,2]
[349984319,1737549045724,-500.0,0.00020801,2]
[349984320,1737549045734,-500.0,0.00020801,2]
[349984321,1737549045743,-500.0,0.00020801,2]
[349984322,1737549045752,-500.0,0.00020801,2]
[349984323,1737549045762,-500.0,0.00020801,2]
[349984324,1737549045771,-500.0,0.00020801,2]
[349984325,1737549045780,-500.0,0.00020801,2]
[349984326,1737549045789,-580.08,0.00020801,2]
[349984327,1737549045799,-1034.13,0.00020801,2]
[349984328,1737549045808,-1918.8,0.00020801,2]
[349984329,1737549045818,-1510.81,0.00020801,2]
[349984330,1737549045827,-1016.66,0.00020801,2]
[349984331,1737549045837,-971.81,0.00020801,2]
[349984332,1737549045846,-500.0,0.00020801,2]
[349984335,1737549046004,-963.7,0.00020801,2]
[349984336,1737549046015,-1351.87,0.00020801,2]
[349984337,1737549046024,-500.0,0.00020801,2]
[349984338,1737549046034,-519.8,0.00020801,2]
[349984339,1737549046044,-726.58,0.00020801,2]
[349984340,1737549046053,-756.68,0.00020801,2]
[349984341,1737549046063,-1361.76,0.00020801,2]
[349984342,1737549046076,-1110.66,0.00020801,2]
[349984343,1737549046086,-652.9,0.00020801,2]
[349984344,1737549046095,-769.05,0.00020801,2]
[349984345,1737549046105,-555.35,0.00020801,2]
[349984346,1737549046117,-1066.49,0.00020801,2]
[349984347,1737549046126,-795.04,0.00020801,2]
[349984348,1737549046135,-2707.27,0.00020801,2]
[349984349,1737549046144,-500.0,0.00020801,2]
[349984350,1737549046154,-1689.92,0.00020801,2]
[349984351,1737549046164,-1448.38,0.00020801,2]
[349984352,1737549046173,-500.0,0.00020801,2]
[349984353,1737549046183,-889.69,0.00020801,2]
[349984354,1737549046192,-682.43,0.00020801,2]
[349984355,1737549046202,-977.14,0.00020801,2]
[349984356,1737549046211,-500.0,0.00020801,2]
[349984357,1737549046221,-775.54,0.00020801,2]
[349984358,1737549046230,-574.34,0.00020801,2]
[349984359,1737549046240,-1681.08,0.00020801,2]
[349984360,1737549046249,-550.22,0.00020801,2]
[349984361,1737549046259,-1831.25,0.00020801,2]
[349984362,1737549046268,-1003.72,0.00020801,2]
[349984363,1737549046277,-500.0,0.00020801,2]
[349984364,1737549046287,-1016.3,0.00020801,2]
[349984365,1737549046296,-1242.63,0.00020801,2]
[349984366,1737549046305,-637.13,0.00020801,2]
[349984367,1737549046315,-895.54,0.00020801,2]
[349984368,1737549046324,-500.0,0.00020801,2]
[349984369,1737549046333,-500.0,0.00020801,2]
[349984370,1737549046343,-4356.71,0.00020801,2]
[349984371,1737549046353,-2195.16,0.00020801,2]
[349984372,1737549046363,-2686.25,0.00020801,2]
[349984373,1737549046372,-500.0,0.00020801,2]
[349984374,1737549046382,-500.0,0.00020801,2]
[349984375,1737549046393,-919.29,0.00020801,2]
[349984376,1737549046403,-1514.78,0.00020801,2]
[349984377,1737549046413,-500.0,0.00020801,2]
[349984378,1737549046423,-2829.02,0.00020801,2]
[349984379,1737549046434,-840.97,0.00020801,2]
[349984380,1737549046444,-500.0,0.00020801,2]
[349984381,1737549046453,-500.0,0.00020801,2]
[349984382,1737549046464,-1467.47,0.00020801,2]
[349984383,1737549046473,-974.6,0.00020801,2]
[349984384,1737549046482,-1423.79,0.00020801,2]
[349984385,1737549046491,-500.0,0.00020801,2]
[349984386,1737549046500,-1034.24,0.00020801,2]
[349984387,1737549046510,-1012.59,0.00020801,2]
[349984388,1737549046519,-918.95,0.00020801,2]
[349984389,1737549046528,-500.0,0.00020801,2]
[349984390,1737549046539,-880.71,0.00020801,2]
[349984391,1737549046549,-500.0,0.00020801,2]
[349984392,1737549046559,-556.06,0.00020801,2]
[349984393,1737549046569,-3001.3,0.00020801,2]
[349984394,1737549046578,-500.0,0.00020801,2]
[349984395,1737549046589,-500.0,0.00020801,2]
[349984396,1737549046598,-1480.58,0.00020801,2]
[349984397,1737549046607,-581.53,0.00020801,2]
[349984398,1737549046617,-500.0,0.00020801,2]
[349984399,1737549046626,-1089.01,0.00020801,2]
[349984400,1737549046635,-500.0,0.00020801,2]
[349984401,1737549046644,-2620.44,0.00020801,2]
[349984402,1737549046654,-1211.77,0.00020801,2]
[349984403,1737549046663,-802.29,0.00020801,2]
[349984404,1737549046672,-500.0,0.00020801,2]
[349984405,1737549046681,-500.0,0.00020801,2]
[349984406,1737549046690,-500.0,0.00020801,2]
[349984407,1737549046699,-500.0,0.00020801,2]
[349984408,1737549046708,-500.0,0.00020801,2]
[349984409,1737549046717,-500.0,0.00020801,2]
[349984410,1737549046726,-556.36,0.00020801,2]
[349984411,1737549046735,-500.0,0.00020801,2]
[349984412,1737549046745,-1228.47,0.00020801,2]
[349984413,1737549046754,-500.0,0.00020801,2]
[349984414,1737549046763,-716.78,0.00020801,2]
[349984415,1737549046772,-1543.85,0.00020801,2]
[349984416,1737549046782,-500.0,0.00020801,2]
[349984417,1737549046791,-500.0,0.00020801,2]
[349984418,1737549046800,-919.14,0.00020801,2]
[349984419,1737549046809,-2698.41,0.00020801,2]
[349984420,1737549046818,-500.0,0.00020801,2]
[349984421,1737549046827,-981.74,0.00020801,2]
[349984422,1737549046837,-500.0,0.00020801,2]
[349984423,1737549046846,-317.35231047,0.00020802,2]
[349984424,1737549046855,-500.0,0.00020802,2]
[349984425,1737549046864,-604.82,0.00020802,2]
[349984426,1737549046874,-500.0,0.00020802,2]
[349984427,1737549046883,-500.0,0.00020802,2]
[349984428,1737549046892,-548.89,0.00020802,2]
[349984429,1737549046901,-500.0,0.00020802,2]
[349984430,1737549046910,-500.0,0.00020802,2]
[349984431,1737549046919,-500.0,0.00020802,2]
[349984432,1737549046928,-500.0,0.00020802,2]
[349984433,1737549046937,-500.0,0.00020802,2]
[349984434,1737549046946,-500.0,0.00020802,2]
[349984435,1737549046955,-500.0,0.00020802,2]
[349984436,1737549046964,-500.0,0.00020802,2]
[349984437,1737549046973,-552.08,0.00020802,2]
[349984438,1737549046983,-614.82,0.00020802,2]
[349984439,1737549046992,-183.23362216,0.00020802,2]
[349984440,1737549047001,-543.85,0.00020802,2]
[349984441,1737549047010,-500.0,0.00020802,2]
[349984442,1737549047020,-500.0,0.00020802,2]
[349984443,1737549047029,-616.84,0.00020802,2]
[349984444,1737549047038,-500.0,0.00020802,2]
[349984445,1737549047048,-500.0,0.00020802,2]
[349984446,1737549047057,-639.14,0.00020802,2]
[349984447,1737549047066,-613.53,0.00020802,2]
[349984448,1737549047077,-500.0,0.00020802,2]
[349984449,1737549047087,-500.0,0.00020802,2]
[349984450,1737549047096,-500.0,0.00020802,2]
[349984451,1737549047105,-511.51,0.00020802,2]
[349984452,1737549047115,-500.0,0.00020802,2]
[349984453,1737549047124,-500.0,0.00020802,2]
[349984454,1737549047134,-594.47,0.00020802,2]
[349984455,1737549047144,-500.0,0.00020802,2]
[349984456,1737549047153,-500.0,0.00020802,2]
[349984457,1737549047163,-534.03,0.00020802,2]
[349984458,1737549047172,-690.93,0.00020802,2]
[349984459,1737549047181,-500.0,0.00020802,2]
[349984460,1737549047191,-500.0,0.00020802,2]
[349984461,1737549047200,-500.0,0.00020802,2]
[349984462,1737549047209,-749.51,0.00020802,2]
[349984463,1737549047219,-546.05,0.00020802,2]
[349984464,1737549047228,-741.19,0.00020802,2]
[349984465,1737549047238,-600.68,0.00020802,2]
[349984466,1737549047247,-500.0,0.00020802,2]
[349984467,1737549047256,-500.0,0.00020802,2]
[349984468,1737549047265,-549.78,0.00020802,2]
[349984469,1737549047274,-491.65605308,0.00020802,2]
[349984470,1737549047284,-500.0,0.00020802,2]
[349984471,1737549047293,-241.57757211,0.00020803,2]
[349984472,1737549047303,-213.03368819,0.00020809,2]
[349984473,1737549047312,-1028.65627677,0.00020814,2]
[349984474,1737549047321,-14298.75980001,0.00020825,2]
[349984475,1737549047330,-1028.65627677,0.00020829,2]
[349984476,1737549047339,-1440.47739404,0.00020835,2]
[349984477,1737549047349,-1440.47739404,0.0002084,2]
[349984478,1737549047359,-14298.75980001,0.0002085,2]
[349984479,1737549047368,-14298.75980001,0.00020852,2]
[349984480,1737549047377,-1028.65627677,0.00020872,2]
[349984481,1737549047386,-14298.75980001,0.00020876,2]
[349984482,1737549047396,-200.0,0.00020877,2]
[349984483,1737549047405,-317.35231047,0.0002088,2]
[349984484,1737549047414,-1028.65627677,0.00020889,2]
[349984485,1737549047424,-1440.47739404,0.00020896,2]
[349984486,1737549047433,-200.0,0.00020897,2]
[349984487,1737549047442,-150.0,0.00020899,2]
[349984488,1737549047451,-160.458,0.000209,2]
[349984489,1737549047460,-317.35231047,0.00020904,2]
[349984490,1737549047469,-241.57757211,0.00020908,2]
[349984491,1737549047478,-317.35231047,0.0002091,2]
[349984492,1737549047487,-1028.65627677,0.00020921,2]
[349984493,1737549047496,-14298.75980001,0.00020924,2]
[349984494,1737549047507,-1440.47739404,0.00020935,2]
[349984495,1737549047517,-1440.47739404,0.00020937,2]
[349984496,1737549047527,-200.0,0.00020939,2]
[349984497,1737549047536,-241.57757211,0.00020944,2]
[349984498,1737549047545,-500.0,0.00020974,2]
[349984499,1737549047555,-500.0,0.00020974,2]
[349984500,1737549047564,-500.0,0.00020974,2]
[349984501,1737549047573,-500.0,0.00020974,2]
[349984502,1737549047583,-500.0,0.00020974,2]
[349984503,1737549047593,-500.0,0.00020974,2]
[349984504,1737549047602,-500.0,0.00020974,2]
[349984505,1737549047611,-500.0,0.00020974,2]
[349984506,1737549047620,-500.0,0.00020974,2]
[349984507,1737549047629,-500.0,0.00020974,2]
[349984508,1737549047639,-500.0,0.00020974,2]
[349984509,1737549047648,-500.0,0.00020974,2]
[349984510,1737549047657,-500.0,0.00020974,2]
[349984511,1737549047667,-500.0,0.00020974,2]
[349984512,1737549047676,-595.67,0.00020974,2]
[349984513,1737549047685,-910.2,0.00020974,2]
[349984514,1737549047694,-1176.07,0.00020974,2]
[349984515,1737549047703,-1124.32,0.00020974,2]
[349984516,1737549047712,-2693.46,0.00020974,2]
[349984517,1737549047721,-500.0,0.00020974,2]
[349984518,1737549047730,-5144.43,0.00020974,2]
[349984519,1737549047739,-727.29,0.00020974,2]
[349984520,1737549047749,-612.69,0.00020974,2]
[349984521,1737549047758,-1727.17,0.00020974,2]
[349984522,1737549047767,-500.0,0.00020974,2]
[349984523,1737549047776,-716.33,0.00020974,2]
[349984524,1737549047786,-500.0,0.00020974,2]
[349984525,1737549047795,-1059.07,0.00020974,2]
[349984526,1737549047804,-1114.06,0.00020974,2]
[349984527,1737549047813,-500.0,0.00020974,2]
[349984528,1737549047822,-500.0,0.00020974,2]
[349984529,1737549047832,-1000.0,0.00020974,2]
[349984530,1737549047841,-634.21,0.00020974,2]
[349984531,1737549047850,-500.0,0.00020974,2]
[349984532,1737549047859,-1624.3,0.00020974,2]
[349984533,1737549047868,-437.82,0.00020974,2]
[349984534,1737549047877,-446.68,0.00020974,2]
[349984535,1737549047886,-500.0,0.00020975,2]
[349984536,1737549047895,-500.0,0.00020975,2]
[349984537,1737549047905,-500.0,0.00020975,2]
[349984538,1737549047915,-213.03368819,0.00020991,2]
[349984539,1737549047925,-9708.73,0.00021,2]
[349984540,1737549047934,-49276.83701,0.00021,2]
[349984541,1737549047944,-1335.98476408,0.00021002,2]
[349984542,1737549047954,-333.39474199,0.00021002,2]
[349984543,1737549047965,-500.0,0.00021075,2]
[349984544,1737549047975,-516.62,0.00021075,2]
[349984545,1737549047985,-500.0,0.00021075,2]
[349984546,1737549047994,-500.0,0.00021075,2]
[349984547,1737549048004,-500.0,0.00021075,2]
[349984548,1737549048013,-530.02,0.00021075,2]
[349984549,1737549048023,-622.68,0.00021075,2]
[349984550,1737549048033,-500.0,0.00021075,2]
[349984551,1737549048043,-465.621511,0.00021075,2]
[349984552,1737549048052,-500.0,0.00021075,2]
[349984553,1737549048062,-500.0,0.00021075,2]
[349984554,1737549048075,-661.91,0.00021075,2]
[349984555,1737549048084,-759.510306,0.00021075,2]
[349984556,1737549048093,-777.07,0.00021075,2]
[349984557,1737549048103,-500.0,0.00021075,2]
[349984558,1737549048114,-500.0,0.00021075,2]
[349984559,1737549048123,-500.0,0.00021075,2]
[349984560,1737549048133,-500.0,0.00021075,2]
[349984561,1737549048142,-569.03486076,0.00021075,2]
[349984562,1737549048153,-682.69,0.00021075,2]
[349984563,1737549048163,-715.54,0.00021075,2]
[349984564,1737549048172,-569.24,0.00021075,2]
[349984565,1737549048181,-500.0,0.00021075,2]
[349984566,1737549048191,-500.0,0.00021075,2]
[349984567,1737549048200,-500.0,0.00021075,2]
[349984568,1737549048210,-500.0,0.00021075,2]
[349984569,1737549048220,-500.0,0.00021075,2]
[349984570,1737549048229,-500.0,0.00021075,2]
[349984571,1737549048239,-500.0,0.00021075,2]
[349984572,1737549048248,-500.0,0.00021075,2]
[349984573,1737549048258,-500.0,0.00021075,2]
[349984574,1737549048267,-500.0,0.00021075,2]
[349984575,1737549048276,-500.0,0.00021075,2]
[349984576,1737549048286,-500.0,0.00021075,2]
[349984577,1737549048295,-500.0,0.00021075,2]
[349984578,1737549048305,-580.08,0.00021075,2]
[349984579,1737549048314,-1034.13,0.00021075,2]
[349984580,1737549048323,-1918.8,0.00021075,2]
[349984581,1737549048333,-1510.81,0.00021075,2]
[349984582,1737549048342,-1016.66,0.00021075,2]
[349984583,1737549048351,-971.81,0.00021075,2]
[349984584,1737549048362,-500.0,0.00021075,2]
[349984585,1737549048371,-963.7,0.00021075,2]
[349984586,1737549048381,-1351.87,0.00021075,2]
[349984587,1737549048390,-500.0,0.00021075,2]
[349984588,1737549048399,-519.8,0.00021075,2]
[349984589,1737549048408,-726.58,0.00021075,2]
[349984590,1737549048418,-756.68,0.00021075,2]
[349984591,1737549048427,-1361.76,0.00021075,2]
[349984592,1737549048436,-1110.66,0.00021075,2]
[349984593,1737549048445,-652.9,0.00021075,2]
[349984594,1737549048455,-769.05,0.00021075,2]
[349984595,1737549048464,-555.35,0.00021075,2]
[349984596,1737549048474,-1066.49,0.00021075,2]
[349984597,1737549048483,-795.04,0.00021075,2]
[349984598,1737549048492,-2707.27,0.00021075,2]
[349984599,1737549048501,-500.0,0.00021075,2]
[349984600,1737549048510,-164.121137,0.00021075,2]
[349984601,1737549048520,-1689.92,0.00021075,2]
[349984602,1737549048529,-1448.38,0.00021075,2]
[349984603,1737549048538,-500.0,0.00021075,2]
[349984604,1737549048547,-889.69,0.00021075,2]
[349984605,1737549048556,-682.43,0.00021075,2]
[349984606,1737549048565,-977.14,0.00021075,2]
[349984607,1737549048574,-500.0,0.00021075,2]
[349984608,1737549048584,-775.54,0.00021075,2]
[349984609,1737549048593,-574.34,0.00021075,2]
[349984610,1737549048603,-1681.08,0.00021075,2]
[349984611,1737549048612,-550.22,0.00021075,2]
[349984612,1737549048621,-1831.25,0.00021075,2]
[349984613,1737549048631,-1003.72,0.00021075,2]
[349984614,1737549048640,-500.0,0.00021075,2]
[349984615,1737549048649,-1016.3,0.00021075,2]
[349984616,1737549048658,-1242.63,0.00021075,2]
[349984617,1737549048668,-637.13,0.00021075,2]
[349984618,1737549048677,-895.54,0.00021075,2]
[349984619,1737549048686,-500.0,0.00021075,2]
[349984620,1737549048695,-500.0,0.00021075,2]
[349984621,1737549048704,-4356.71,0.00021075,2]
[349984622,1737549048713,-2195.16,0.00021075,2]
[349984623,1737549048723,-2686.25,0.00021075,2]
[349984624,1737549048731,-208.62,0.00021075,2]
[349984625,1737549048741,-500.0,0.00021075,2]
[349984626,1737549048750,-919.29,0.00021075,2]
[349984627,1737549048764,-1514.78,0.00021075,2]
[349984628,1737549048773,-500.0,0.00021075,2]
[349984629,1737549048782,-2829.02,0.00021075,2]
[349984630,1737549048791,-840.97,0.00021075,2]
[349984631,1737549048801,-500.0,0.00021075,2]
[349984632,1737549048810,-500.0,0.00021075,2]
[349984633,1737549048819,-1467.47,0.00021075,2]
[349984634,1737549048828,-974.6,0.00021075,2]
[349984635,1737549048837,-1423.79,0.00021075,2]
[349984636,1737549048846,-500.0,0.00021075,2]
[349984637,1737549048855,-1034.24,0.00021075,2]
[349984638,1737549048866,-1012.59,0.00021075,2]
[349984639,1737549048875,-918.95,0.00021075,2]
[349984640,1737549048884,-500.0,0.00021075,2]
[349984641,1737549049030,-880.71,0.00021075,2]
[349984642,1737549049040,-500.0,0.00021075,2]
[349984643,1737549049051,-556.06,0.00021075,2]
[349984644,1737549049060,-3001.3,0.00021075,2]
[349984645,1737549049072,-500.0,0.00021075,2]
[349984646,1737549049081,-500.0,0.00021075,2]
[349984647,1737549049091,-1480.58,0.00021075,2]
[349984648,1737549049100,-581.53,0.00021075,2]
[349984649,1737549049111,-1089.01,0.00021075,2]
[349984650,1737549049121,-2620.44,0.00021075,2]
[349984651,1737549049130,-1211.77,0.00021075,2]
[349984652,1737549049139,-500.0,0.00021075,2]
[349984653,1737549049151,-802.29,0.00021075,2]
[349984654,1737549049161,-500.0,0.00021075,2]
[349984655,1737549049170,-500.0,0.00021075,2]
[349984656,1737549049179,-500.0,0.00021075,2]
[349984657,1737549049189,-500.0,0.00021075,2]
[349984658,1737549049199,-556.36,0.00021075,2]
[349984659,1737549049209,-500.0,0.00021075,2]
[349984660,1737549049218,-1228.47,0.00021075,2]
[349984661,1737549049228,-500.0,0.00021075,2]
[349984662,1737549049237,-716.78,0.00021075,2]
[349984663,1737549049247,-1543.85,0.00021075,2]
[349984664,1737549049257,-500.0,0.00021075,2]
[349984665,1737549049266,-500.0,0.00021075,2]
[349984666,1737549049276,-919.14,0.00021075,2]
[349984667,1737549049285,-2698.41,0.00021075,2]
[349984668,1737549049295,-500.0,0.00021075,2]
[349984669,1737549049305,-981.74,0.00021075,2]
[349984670,1737549049314,-500.0,0.00021075,2]
[349984671,1737549049323,-500.0,0.00021076,2]
[349984672,1737549049333,-604.82,0.00021076,2]
[349984673,1737549049342,-500.0,0.00021076,2]
[349984674,1737549049352,-500.0,0.00021076,2]
[349984675,1737549049361,-548.89,0.00021076,2]
[349984676,1737549049371,-500.0,0.00021076,2]
[349984677,1737549049380,-500.0,0.00021076,2]
[349984678,1737549049389,-500.0,0.00021076,2]
[349984679,1737549049399,-500.0,0.00021076,2]
[349984680,1737549049409,-500.0,0.00021076,2]
[349984681,1737549049418,-479.42519962,0.00021076,2]
[349984682,1737549049428,-500.0,0.00021076,2]
[349984683,1737549049438,-500.0,0.00021076,2]
[349984684,1737549049448,-552.08,0.00021076,2]
[349984685,1737549049458,-614.82,0.00021076,2]
[349984686,1737549049467,-543.85,0.00021076,2]
[349984687,1737549049477,-500.0,0.00021076,2]
[349984688,1737549049486,-500.0,0.00021076,2]
[349984689,1737549049496,-616.84,0.00021076,2]
[349984690,1737549049505,-500.0,0.00021076,2]
[349984691,1737549049515,-500.0,0.00021076,2]
[349984692,1737549049525,-639.14,0.00021076,2]
[349984693,1737549049536,-613.53,0.00021076,2]
[349984694,1737549049545,-500.0,0.00021076,2]